bitfinex/quotes_SOLUSD_20250604
["timestamp","ask_amount","ask_price","bid_price","bid_amount"]
[1749042365268,20.610311,155.51,155.47,0.14216157]
[1749042366264,0.8019413,155.51,155.46,0.14216157]
[1749042366471,20.610311,155.51,155.48,18.933972]
[1749042366779,45.8083697,155.52,155.48,18.933972]
[1749042367094,19.8083697,155.49,155.46,0.28432314]
[1749042368281,0.8019413,155.51,155.46,0.28432314]
[1749042368476,19.8083697,155.49,155.46,0.28432314]
[1749042370286,19.8083697,155.48,155.46,0.28432314]
[1749042370472,19.8083697,155.48,155.44,0.28432314]
[1749042371693,0.8019413,155.51,155.44,0.28432314]
[1749042371901,19.8083697,155.49,155.46,0.14216157]
[1749042372090,0.8019413,155.51,155.46,0.14216157]
[1749042372276,19.8083697,155.51,155.48,0.28432314]
[1749042372488,45.8083697,155.52,155.48,0.28432314]
[1749042373010,19.8083697,155.51,155.48,0.28432314]
[1749042373375,19.8083697,155.5,155.48,0.14216157]
[1749042374297,19.8083697,155.5,155.47,18.79181043]
[1749042374705,0.8019413,155.51,155.47,18.79181043]
[1749042374885,19.8083697,155.5,155.47,18.79181043]
[1749042375203,0.8019413,155.51,155.47,18.933972]
[1749042375509,20.610311,155.51,155.47,18.933972]
[1749042376110,19.8083697,155.51,155.49,0.14216157]
[1749042376281,26.0,155.52,155.49,0.14216157]
[1749042376604,20.610311,155.51,155.49,0.14216157]
[1749042376901,19.8083697,155.5,155.47,0.14216157]
[1749042378335,19.8083697,155.5,155.47,18.933972]
[1749042378698,28.3667413,155.53,155.47,18.933972]
[1749042378886,19.8083697,155.5,155.47,18.933972]
[1749042379082,28.3667413,155.53,155.47,18.933972]
[1749042379383,19.8083697,155.5,155.47,18.933972]
[1749042380201,19.8083697,155.5,155.47,0.14216157]
[1749042380783,19.8083697,155.48,155.44,18.64964886]
[1749042380985,20.610311,155.47,155.45,0.14216157]
[1749042381402,19.8083697,155.47,155.45,0.14216157]
[1749042381819,20.610311,155.46,155.42,18.79181043]
[1749042382134,20.610311,155.46,155.43,0.14216157]
[1749042382431,20.610311,155.46,155.42,18.79181043]
[1749042382432,19.8083697,155.45,155.42,18.79181043]
[1749042383491,19.8083697,155.48,155.44,0.14216157]
[1749042383808,20.610311,155.49,155.46,0.14216157]
[1749042384324,19.8083697,155.48,155.46,0.14216157]
[1749042384938,19.8083697,155.47,155.46,0.14216157]
[1749042385908,19.8083697,155.48,155.46,0.14216157]
[1749042387426,19.8083697,155.49,155.46,0.14216157]
[1749042388118,19.8083697,155.49,155.43,0.28432314]
[1749042388331,19.8083697,155.49,155.45,18.933972]
[1749042388922,20.610311,155.48,155.45,18.933972]
[1749042389298,19.8083697,155.49,155.45,18.933972]
[1749042390003,19.8083697,155.47,155.45,0.14216157]
[1749042390226,0.8019413,155.5,155.45,0.14216157]
[1749042390420,19.8083697,155.46,155.44,0.28432314]
[1749042391013,19.8083697,155.45,155.4,19.8083697]
[1749042391321,26.0,155.51,155.41,18.79181043]
[1749042391322,19.8083697,155.42,155.41,18.79181043]
[1749042391530,19.8083697,155.42,155.41,0.14216157]
[1749042391903,19.8083697,155.42,155.39,0.28432314]
[1749042392320,19.8083697,155.42,155.39,0.14216157]
[1749042392523,19.8083697,155.42,155.39,18.79181043]
[1749042392730,19.8083697,155.43,155.4,0.14216157]
[1749042393802,19.8083697,155.44,155.4,19.95053127]
[1749042394002,20.610311,155.44,155.4,19.95053127]
[1749042394831,19.8083697,155.43,155.4,0.14216157]
[1749042395320,19.8083697,155.43,155.39,38.7423417]
[1749042397835,19.8083697,155.44,155.41,18.933972]
[1749042398132,45.8083697,155.45,155.41,38.7423417]
[1749042398332,19.8083697,155.45,155.41,38.7423417]
[1749042398512,19.8083697,155.45,155.41,18.933972]
[1749042398708,19.8083697,155.43,155.41,0.14216157]
[1749042399031,19.8083697,155.42,155.4,0.28432314]
[1749042399213,19.8083697,155.41,155.4,0.28432314]
[1749042399403,19.8083697,155.41,155.4,0.14216157]
[1749042399810,19.8083697,155.41,155.38,0.14216157]
[1749042400033,19.8083697,155.41,155.37,0.14216157]
[1749042400330,19.8083697,155.42,155.39,0.14216157]
[1749042401036,20.610311,155.41,155.38,0.14216157]
[1749042401328,19.8083697,155.4,155.38,0.14216157]
[1749042401515,19.8083697,155.41,155.38,0.14216157]
[1749042402211,20.610311,155.4,155.37,0.14216157]
[1749042403309,19.8083697,155.41,155.37,0.14216157]
[1749042407236,19.8083697,155.42,155.38,38.60018013]
[1749042407622,0.8019413,155.41,155.38,18.79181043]
[1749042407824,20.610311,155.41,155.38,18.79181043]
[1749042408228,19.8083697,155.41,155.38,18.79181043]
[1749042409633,19.8083697,155.4,155.37,0.28432314]
[1749042413242,19.8083697,155.41,155.38,18.64964886]
[1749042414344,19.8083697,155.41,155.37,0.28432314]
[1749042415719,20.610311,155.4,155.37,0.28432314]
[1749042420737,19.8083697,155.39,155.37,0.14216157]
[1749042420937,20.610311,155.38,155.36,0.14216157]
[1749042421261,19.8083697,155.37,155.36,0.14216157]
[1749042422024,19.8083697,155.39,155.36,0.14216157]
[1749042422245,0.8019413,155.38,155.36,0.14216157]
[1749042423942,26.0,155.4,155.36,0.14216157]
[1749042423943,0.8019413,155.4,155.38,0.14216157]
[1749042424327,20.610311,155.4,155.38,0.14216157]
[1749042424532,19.8083697,155.39,155.38,0.14216157]
[1749042424865,19.8083697,155.39,155.37,0.14216157]
[1749042425075,20.610311,155.38,155.36,0.14216157]
[1749042425234,19.8083697,155.37,155.36,0.14216157]
[1749042428666,19.8083697,155.38,155.36,0.14216157]
[1749042428865,19.8083697,155.37,155.36,0.14216157]
[1749042429270,19.8083697,155.38,155.36,0.14216157]
[1749042431558,0.8019413,155.37,155.36,0.14216157]
[1749042431957,20.610311,155.37,155.35,6.45163839]
[1749042432275,19.8083697,155.36,155.35,6.59379996]
[1749042432868,19.8083697,155.37,155.35,6.59379996]
[1749042433980,19.8083697,155.38,155.35,6.59379996]
[1749042434283,0.8019413,155.37,155.35,6.59379996]
[1749042435152,20.610311,155.37,155.35,6.59379996]
[1749042436167,0.8019413,155.39,155.36,0.14216157]
[1749042436363,26.8019413,155.4,155.36,19.95053127]
[1749042436558,19.8083697,155.39,155.36,0.14216157]
[1749042436764,20.610311,155.38,155.36,0.14216157]
[1749042437464,19.8083697,155.37,155.36,0.14216157]
[1749042439872,19.8083697,155.37,155.35,6.45163839]
[1749042440054,0.8019413,155.36,155.35,6.59379996]
[1749042440254,20.610311,155.36,155.35,6.59379996]
[1749042441475,0.8019413,155.36,155.35,6.59379996]
[1749042441685,19.8083697,155.36,155.28,6.2342]
[1749042441856,19.8083697,155.33,155.29,18.79181043]
[1749042442055,0.8019413,155.32,155.28,38.60018013]
[1749042442254,20.610311,155.32,155.28,18.79181043]
[1749042442778,20.610311,155.32,155.27,0.14216157]
[1749042442779,19.8083697,155.31,155.27,0.14216157]
[1749042442950,20.610311,155.3,155.27,18.933972]
[1749042443156,20.610311,155.3,155.27,18.79181043]
[1749042444054,20.610311,155.3,155.27,0.14216157]
[1749042444477,19.8083697,155.29,155.26,18.79181043]
[1749042445068,20.610311,155.28,155.24,18.933972]
[1749042445282,19.8083697,155.29,155.24,38.7423417]
[1749042445457,0.8019413,155.28,155.24,38.7423417]
[1749042446276,20.610311,155.28,155.24,38.7423417]
[1749042446861,20.610311,155.28,155.24,18.933972]
[1749042447071,20.610311,155.28,155.24,38.7423417]
[1749042447364,19.8083697,155.29,155.25,19.8083697]
[1749042447558,2.4138413,155.31,155.25,19.8083697]
[1749042447776,19.8083697,155.3,155.25,19.8083697]
[1749042447964,0.8019413,155.29,155.25,19.8083697]
[1749042448668,20.610311,155.29,155.25,19.8083697]
[1749042449069,20.610311,155.29,155.24,18.933972]
[1749042449284,19.8083697,155.28,155.24,38.7423417]
[1749042449484,19.8083697,155.28,155.24,18.933972]
[1749042449781,2.4138413,155.31,155.24,18.933972]
[1749042449782,20.610311,155.27,155.24,18.933972]
[1749042450490,0.8019413,155.27,155.24,20.09269284]
[1749042450970,19.8083697,155.28,155.24,20.09269284]
[1749042451154,19.8083697,155.28,155.24,0.28432314]
[1749042451360,19.8083697,155.28,155.24,38.7423417]
[1749042451766,22.222211,155.31,155.27,0.14216157]
[1749042452070,22.222211,155.31,155.27,18.933972]
[1749042452894,20.610311,155.31,155.27,38.7423417]
[1749042454385,19.8083697,155.31,155.27,38.7423417]
[1749042455783,0.8019413,155.32,155.28,19.8083697]
[1749042455784,20.610311,155.32,155.28,19.8083697]
[1749042456291,19.8083697,155.32,155.29,18.933972]
[1749042456481,45.8083697,155.33,155.29,20.09269284]
[1749042457865,2.3313413,155.35,155.3,18.64964886]
[1749042458064,19.8083697,155.34,155.3,19.8083697]
[1749042459784,2.3313413,155.35,155.31,18.933972]
[1749042459988,0.8019413,155.35,155.31,38.7423417]
[1749042460169,19.8083697,155.36,155.32,19.8083697]
[1749042460370,45.8083697,155.37,155.32,19.8083697]
[1749042460570,0.8019413,155.36,155.34,0.14216157]
[1749042461190,20.610311,155.36,155.34,0.14216157]
[1749042461395,19.8083697,155.35,155.32,18.79181043]
[1749042462564,20.610311,155.36,155.32,18.79181043]
[1749042464166,19.8083697,155.35,155.32,0.14216157]
[1749042464366,20.610311,155.34,155.29,18.933972]
[1749042464582,19.8083697,155.33,155.29,38.7423417]
[1749042464881,0.8019413,155.36,155.29,38.7423417]
[1749042465083,19.8083697,155.33,155.29,38.7423417]
[1749042465586,19.8083697,155.31,155.29,0.14216157]
[1749042465794,19.8083697,155.33,155.29,38.60018013]
[1749042466888,19.8083697,155.35,155.31,19.95053127]
[1749042467065,19.8083697,155.34,155.31,0.14216157]
[1749042467268,19.8083697,155.33,155.3,18.79181043]
[1749042467669,19.8083697,155.33,155.3,18.933972]
[1749042468793,19.8083697,155.34,155.3,20.09269284]
[1749042469167,19.8083697,155.34,155.31,18.64964886]
[1749042469489,0.8019413,155.37,155.33,19.8083697]
[1749042469695,20.610311,155.37,155.32,38.7423417]
[1749042469994,19.8083697,155.37,155.33,19.8083697]
[1749042470385,19.8083697,155.37,155.32,0.14216157]
[1749042470575,19.8083697,155.37,155.33,18.79181043]
[1749042472176,19.8083697,155.36,155.33,18.79181043]
[1749042472902,19.8083697,155.37,155.33,18.79181043]
[1749042474471,19.8083697,155.36,155.3,19.21829514]
[1749042474672,20.610311,155.36,155.32,0.28432314]
[1749042475382,20.610311,155.36,155.33,18.79181043]
[1749042475780,19.8083697,155.36,155.33,18.79181043]
[1749042475981,19.8083697,155.36,155.29,26.0]
[1749042476283,19.8083697,155.36,155.33,0.14216157]
[1749042476790,19.8083697,155.34,155.3,19.8083697]
[1749042476992,19.8083697,155.32,155.3,18.79181043]
[1749042477198,19.8083697,155.31,155.3,0.14216157]
[1749042477583,19.8083697,155.31,155.29,0.14216157]
[1749042477790,0.8019413,155.35,155.29,0.14216157]
[1749042477791,19.8083697,155.3,155.29,0.14216157]
[1749042477992,19.8083697,155.3,155.25,0.14216157]
[1749042478195,19.8083697,155.27,155.25,0.28432314]
[1749042478792,19.8083697,155.28,155.25,0.28432314]
[1749042480999,19.8083697,155.28,155.25,0.14216157]
[1749042482503,19.8083697,155.27,155.25,0.14216157]
[1749042483212,19.8083697,155.27,155.24,0.14216157]
[1749042483381,19.8083697,155.26,155.23,18.79181043]
[1749042483578,0.8019413,155.3,155.22,0.14216157]
[1749042483579,19.8083697,155.25,155.22,0.14216157]
[1749042484095,19.8083697,155.25,155.22,0.28432314]
[1749042484386,19.8083697,155.24,155.22,0.14216157]
[1749042484593,19.8083697,155.24,155.22,0.28432314]
[1749042485122,19.8083697,155.24,155.22,0.14216157]
[1749042485685,20.610311,155.23,155.2,18.933972]
[1749042485883,19.8083697,155.22,155.2,18.933972]
[1749042486294,19.8083697,155.22,155.2,18.79181043]
[1749042486493,19.8083697,155.23,155.2,18.79181043]
[1749042487407,19.8083697,155.23,155.2,0.14216157]
[1749042487609,19.8083697,155.21,155.2,0.14216157]
[1749042488090,19.8083697,155.22,155.2,0.14216157]
[1749042488294,27.6309,155.27,155.2,0.14216157]
[1749042488295,26.0,155.25,155.2,0.14216157]
[1749042488494,19.8083697,155.23,155.2,0.14216157]
[1749042489315,0.8019413,155.22,155.2,0.14216157]
[1749042489608,19.8083697,155.23,155.2,0.14216157]
[1749042490307,19.8083697,155.23,155.2,18.933972]
[1749042490507,45.8083697,155.25,155.21,19.8083697]
[1749042491098,45.8083697,155.25,155.2,38.7423417]
[1749042491602,20.610311,155.24,155.2,18.933972]
[1749042491806,19.8083697,155.23,155.2,0.14216157]
[1749042493918,19.8083697,155.24,155.2,19.95053127]
[1749042494211,46.610311,155.25,155.21,38.60018013]
[1749042495312,19.8083697,155.24,155.21,18.79181043]
[1749042496097,19.8083697,155.24,155.19,11.65561054]
[1749042496301,0.8019413,155.23,155.21,0.14216157]
[1749042496601,20.610311,155.24,155.21,0.14216157]
[1749042496803,0.8019413,155.24,155.22,0.14216157]
[1749042498109,19.8083697,155.25,155.22,0.14216157]
[1749042499009,22.241211,155.27,155.22,20.09269284]
[1749042499201,22.241211,155.27,155.23,38.45801856]
[1749042499404,19.8083697,155.26,155.22,19.95053127]
[1749042499608,0.8019413,155.25,155.23,0.14216157]
[1749042499798,19.8083697,155.26,155.23,0.14216157]
[1749042499997,0.8019413,155.25,155.23,0.14216157]
[1749042500388,2.4328413,155.27,155.23,0.14216157]
[1749042500594,19.8083697,155.26,155.23,0.14216157]
[1749042500920,19.8083697,155.26,155.23,18.79181043]
[1749042501318,19.8083697,155.24,155.21,0.14216157]
[1749042501522,20.610311,155.23,155.21,0.14216157]
[1749042502607,19.8083697,155.22,155.21,0.14216157]
[1749042503445,19.8083697,155.23,155.21,0.14216157]
[1749042504827,0.8019413,155.25,155.21,0.14216157]
[1749042505196,0.8019413,155.25,155.22,19.95053127]
[1749042505705,20.610311,155.26,155.22,19.95053127]
[1749042506702,19.8083697,155.25,155.22,0.14216157]
[1749042507244,20.610311,155.24,155.22,0.14216157]
[1749042507802,19.8083697,155.23,155.2,18.933972]
[1749042508410,19.8083697,155.24,155.2,38.7423417]
[1749042510425,19.8083697,155.25,155.22,0.14216157]
[1749042510635,19.8083697,155.25,155.23,0.14216157]
[1749042510943,20.610311,155.26,155.23,0.14216157]
[1749042511438,19.8083697,155.25,155.23,0.14216157]
[1749042511809,19.8083697,155.25,155.22,0.14216157]
[1749042512010,19.8083697,155.25,155.22,18.79181043]
[1749042514021,19.8083697,155.25,155.22,18.64964886]
[1749042514340,0.8019413,155.24,155.21,18.64964886]
[1749042515224,19.8083697,155.25,155.21,18.64964886]
[1749042515413,0.8019413,155.24,155.21,18.64964886]
[1749042515731,19.8083697,155.25,155.21,18.64964886]
[1749042516126,19.8083697,155.25,155.21,38.45801856]
[1749042516824,27.6309,155.27,155.23,19.8083697]
[1749042517011,48.241211,155.27,155.23,19.8083697]
[1749042517216,48.241211,155.27,155.23,18.64964886]
[1749042518437,19.8083697,155.26,155.23,18.64964886]
[1749042518638,20.610311,155.26,155.23,18.64964886]
[1749042518918,19.8083697,155.24,155.21,0.14216157]
[1749042519315,27.6309,155.27,155.2,18.79181043]
[1749042519316,20.610311,155.23,155.2,18.79181043]
[1749042519823,19.8083697,155.22,155.2,0.14216157]
[1749042520257,19.8083697,155.23,155.2,0.14216157]
[1749042520924,20.610311,155.24,155.2,19.95053127]
[1749042521427,19.8083697,155.23,155.2,0.14216157]
[1749042522325,0.8019413,155.24,155.21,18.79181043]
[1749042522521,45.8083697,155.25,155.21,38.60018013]
[1749042522721,20.610311,155.24,155.2,18.933972]
[1749042522931,46.610311,155.24,155.2,18.933972]
[1749042523640,19.8083697,155.22,155.2,0.14216157]
[1749042524548,0.8019413,155.24,155.21,18.79181043]
[1749042524739,19.8083697,155.25,155.21,38.60018013]
[1749042524943,0.8019413,155.25,155.22,19.95053127]
[1749042525140,20.610311,155.26,155.22,19.95053127]
[1749042525845,20.610311,155.26,155.22,0.14216157]
[1749042526032,19.8083697,155.25,155.21,18.933972]
[1749042526232,19.8083697,155.25,155.21,38.7423417]
[1749042526546,20.610311,155.26,155.21,38.7423417]
[1749042529448,20.610311,155.26,155.22,19.8083697]
[1749042532352,20.610311,155.26,155.21,18.933972]
[1749042532353,19.8083697,155.25,155.21,0.14216157]
[1749042532540,27.6309,155.27,155.2,38.7423417]
[1749042532541,20.610311,155.24,155.2,38.7423417]
[1749042532748,20.610311,155.26,155.21,19.8083697]
[1749042532929,20.610311,155.26,155.22,0.28432314]
[1749042533134,20.610311,155.26,155.22,20.09269284]
[1749042533330,46.610311,155.26,155.22,0.28432314]
[1749042533537,20.610311,155.26,155.22,0.28432314]
[1749042533746,19.8083697,155.25,155.22,0.14216157]
[1749042533951,0.8019413,155.24,155.22,0.14216157]
[1749042534546,20.610311,155.24,155.21,0.28432314]
[1749042535740,45.8083697,155.25,155.21,20.09269284]
[1749042536350,0.8019413,155.24,155.21,20.09269284]
[1749042536661,19.8083697,155.22,155.21,0.14216157]
[1749042536863,19.8083697,155.23,155.21,0.14216157]
[1749042537564,0.8019413,155.22,155.21,0.14216157]
[1749042537765,20.610311,155.22,155.21,0.14216157]
[1749042538354,20.610311,155.22,155.19,0.28432314]
[1749042538852,0.8019413,155.22,155.19,0.28432314]
[1749042539173,19.8083697,155.23,155.19,20.09269284]
[1749042539849,0.8019413,155.24,155.19,20.09269284]
[1749042540180,19.8083697,155.23,155.19,20.09269284]
[1749042540459,46.610311,155.25,155.21,19.95053127]
[1749042540666,46.610311,155.25,155.21,0.14216157]
[1749042540843,46.610311,155.25,155.21,0.28432314]
[1749042541045,19.8083697,155.23,155.18,18.933972]
[1749042541369,19.8083697,155.23,155.18,38.7423417]
[1749042541666,0.8019413,155.22,155.18,38.7423417]
[1749042542168,0.8019413,155.22,155.19,0.14216157]
[1749042542841,20.610311,155.22,155.19,0.14216157]
[1749042543534,19.8083697,155.22,155.19,0.14216157]
[1749042543738,19.8083697,155.23,155.19,0.14216157]
[1749042544152,0.8019413,155.22,155.19,0.14216157]
[1749042544478,20.610311,155.22,155.17,0.28432314]
[1749042544648,20.610311,155.22,155.17,20.09269284]
[1749042545862,19.8083697,155.21,155.17,27.20777181]
[1749042546546,19.8083697,155.2,155.17,7.25724054]
[1749042546863,19.8083697,155.19,155.17,7.25724054]
[1749042547165,19.8083697,155.19,155.17,7.11507897]
[1749042547166,19.8083697,155.18,155.17,7.11507897]
[1749042554977,0.8019413,155.21,155.18,0.14216157]
[1749042555160,45.8083697,155.21,155.18,0.14216157]
[1749042555363,0.8019413,155.21,155.18,0.42648471]
[1749042555551,21.3249697,155.22,155.18,20.23485441]
[1749042556775,0.8019413,155.23,155.2,0.14216157]
[1749042556985,2.3930413,155.26,155.22,0.14216157]
[1749042557195,22.201411,155.26,155.23,0.14216157]
[1749042557408,0.8019413,155.26,155.23,19.95053127]
[1749042557609,0.8019413,155.3,155.26,0.14216157]
[1749042557793,19.8083697,155.29,155.24,0.28432314]
[1749042558091,19.8083697,155.29,155.25,0.14216157]
[1749042558092,0.8019413,155.28,155.25,0.14216157]
[1749042558301,2.3930413,155.31,155.26,20.09269284]
[1749042558488,19.8083697,155.32,155.29,0.14216157]
[1749042558660,19.8083697,155.33,155.29,0.14216157]
[1749042558866,0.8019413,155.32,155.29,0.14216157]
[1749042559405,20.610311,155.32,155.29,0.14216157]
[1749042560374,0.8019413,155.32,155.29,0.14216157]
[1749042560682,20.610311,155.32,155.29,0.14216157]
[1749042560885,26.0,155.33,155.29,19.95053127]
[1749042561066,19.8083697,155.34,155.3,20.23485441]
[1749042561265,19.8083697,155.34,155.3,19.95053127]
[1749042561674,20.610311,155.33,155.3,0.42648471]
[1749042562002,2.4208413,155.35,155.32,0.14216157]
[1749042562329,26.0,155.33,155.32,0.14216157]
[1749042562481,26.8019413,155.35,155.32,0.14216157]
[1749042562819,26.0,155.35,155.32,19.95053127]
[1749042563486,26.8019413,155.35,155.32,19.95053127]
[1749042564606,26.0,155.35,155.33,0.28432314]
[1749042564986,26.0,155.35,155.34,0.14216157]
[1749042565503,26.0,155.35,155.33,0.42648471]
[1749042565910,45.8083697,155.35,155.33,0.42648471]
[1749042566203,20.610311,155.34,155.3,0.42648471]
[1749042566522,19.8083697,155.33,155.3,0.14216157]
[1749042567475,20.610311,155.32,155.3,0.14216157]
[1749042567678,19.8083697,155.31,155.29,7.62151643]
[1749042567877,19.8083697,155.3,155.29,7.763678]
[1749042568095,19.8083697,155.31,155.29,0.14216157]
[1749042568792,46.610311,155.32,155.29,0.14216157]
[1749042569488,19.8083697,155.31,155.29,0.14216157]
[1749042569807,0.8019413,155.3,155.23,18.64964886]
[1749042570001,20.610311,155.3,155.27,0.14216157]
[1749042570401,19.8083697,155.28,155.27,0.14216157]
[1749042570793,19.8083697,155.28,155.26,7.44490414]
[1749042571104,19.8083697,155.27,155.26,7.58706571]
[1749042571908,19.8083697,155.28,155.26,7.58706571]
[1749042573425,20.610311,155.27,155.26,7.58706571]
[1749042574202,19.8083697,155.28,155.26,7.58706571]
[1749042574405,20.610311,155.29,155.26,7.58706571]
[1749042574605,26.0,155.29,155.27,0.14216157]
[1749042574988,46.610311,155.29,155.27,0.14216157]
[1749042575189,19.8083697,155.28,155.27,0.14216157]
[1749042575391,19.8083697,155.28,155.25,0.42648471]
[1749042575621,26.0,155.29,155.25,20.23485441]
[1749042575789,0.8019413,155.31,155.27,19.95053127]
[1749042575998,26.0,155.29,155.27,19.95053127]
[1749042576587,0.8019413,155.31,155.27,19.95053127]
[1749042577110,20.610311,155.32,155.29,0.14216157]
[1749042577321,0.8019413,155.32,155.29,0.14216157]
[1749042577620,20.610311,155.32,155.29,0.14216157]
[1749042578186,0.8019413,155.32,155.29,19.95053127]
[1749042578408,20.610311,155.32,155.29,0.42648471]
[1749042579718,19.8083697,155.32,155.29,0.42648471]
[1749042580016,27.6031,155.33,155.3,0.14216157]
[1749042580017,47.4114697,155.33,155.3,0.14216157]
[1749042580218,45.8083697,155.33,155.3,0.14216157]
[1749042582690,45.8083697,155.33,155.29,20.09269284]
[1749042582691,0.8019413,155.32,155.29,0.28432314]
[1749042582901,20.610311,155.32,155.29,0.42648471]
[1749042583302,19.8083697,155.31,155.27,19.95053127]
[1749042583817,20.610311,155.32,155.27,19.95053127]
[1749042584306,20.610311,155.32,155.27,0.42648471]
[1749042584618,19.8083697,155.3,155.27,0.42648471]
[1749042585497,0.8019413,155.32,155.27,0.42648471]
[1749042585498,19.8083697,155.31,155.27,20.23485441]
[1749042585912,0.8019413,155.32,155.27,20.23485441]
[1749042586093,0.8019413,155.32,155.28,19.8083697]
[1749042586299,20.610311,155.32,155.28,19.8083697]
[1749042587901,19.8083697,155.31,155.27,20.23485441]
[1749042588823,19.8083697,155.31,155.27,20.37701598]
[1749042590824,20.610311,155.32,155.28,19.8083697]
[1749042591030,20.610311,155.32,155.27,20.37701598]
[1749042592216,45.8083697,155.33,155.29,0.42648471]
[1749042592705,19.8083697,155.33,155.29,20.23485441]
[1749042593314,19.8083697,155.33,155.29,0.42648471]
[1749042594707,0.8019413,155.35,155.29,0.42648471]
[1749042594903,19.8083697,155.33,155.29,0.42648471]
[1749042596328,19.8083697,155.33,155.29,20.23485441]
[1749042597043,20.610311,155.35,155.31,0.42648471]
[1749042597209,0.8019413,155.35,155.31,0.42648471]
[1749042597535,19.8083697,155.35,155.31,20.23485441]
[1749042600723,19.8083697,155.34,155.29,0.14216157]
[1749042600921,19.8083697,155.33,155.3,0.14216157]
[1749042601127,0.8019413,155.35,155.3,0.14216157]
[1749042601327,0.8019413,155.35,155.3,19.95053127]
[1749042601511,0.8019413,155.35,155.31,0.14216157]
[1749042601712,19.8083697,155.35,155.32,0.28432314]
[1749042602436,19.8083697,155.35,155.32,0.14216157]
[1749042602632,26.0,155.36,155.32,0.28432314]
[1749042602824,19.8083697,155.35,155.32,0.28432314]
[1749042603226,27.6407,155.37,155.32,0.28432314]
[1749042603430,19.8083697,155.35,155.32,0.28432314]
[1749042603643,28.4426413,155.37,155.33,0.14216157]
[1749042603837,6.1222,155.4,155.33,39.02666484]
[1749042603838,20.610311,155.38,155.33,39.02666484]
[1749042604323,19.8083697,155.37,155.33,39.02666484]
[1749042607255,19.8083697,155.37,155.33,19.21829514]
[1749042607465,19.8083697,155.37,155.33,39.02666484]
[1749042610448,19.8083697,155.37,155.33,19.21829514]
[1749042610767,0.8019413,155.39,155.33,0.42648471]
[1749042610768,19.8083697,155.36,155.33,0.42648471]
[1749042611665,19.8083697,155.37,155.33,0.42648471]
[1749042612029,19.8083697,155.37,155.34,0.14216157]
[1749042613256,19.8083697,155.36,155.32,20.23485441]
[1749042613625,0.8019413,155.39,155.34,0.42648471]
[1749042613626,19.8083697,155.37,155.34,0.42648471]
[1749042613828,19.8083697,155.38,155.35,0.14216157]
[1749042614048,20.610311,155.39,155.35,19.95053127]
[1749042614361,19.8083697,155.4,155.35,18.64964886]
[1749042614530,28.4331413,155.41,155.38,0.14216157]
[1749042614731,48.241511,155.41,155.38,0.14216157]
[1749042615158,19.8083697,155.4,155.36,20.23485441]
[1749042616158,48.241511,155.41,155.36,20.23485441]
[1749042616561,48.241511,155.41,155.36,0.42648471]
[1749042616741,48.241511,155.41,155.36,39.02666484]
[1749042617268,28.4331413,155.41,155.36,39.02666484]
[1749042617443,19.8083697,155.4,155.36,19.21829514]
[1749042617642,19.8083697,155.39,155.36,19.21829514]
[1749042620941,19.8083697,155.39,155.35,19.21829514]
[1749042621266,19.8083697,155.37,155.35,0.14216157]
[1749042621469,19.8083697,155.36,155.34,0.14216157]
[1749042621639,19.8083697,155.36,155.34,0.42648471]
[1749042622042,19.8083697,155.36,155.34,0.28432314]
[1749042622450,19.8083697,155.35,155.33,0.14216157]
[1749042622742,19.8083697,155.35,155.33,0.42648471]
[1749042624060,45.8083697,155.35,155.33,0.42648471]
[1749042626260,19.8083697,155.35,155.33,0.42648471]
[1749042626461,28.4331413,155.41,155.33,0.28432314]
[1749042626666,19.8083697,155.35,155.33,0.28432314]
[1749042627675,19.8083697,155.35,155.32,19.21829514]
[1749042629872,19.8083697,155.36,155.32,39.02666484]
[1749042630369,19.8083697,155.35,155.32,39.02666484]
[1749042631868,19.8083697,155.35,155.32,19.21829514]
[1749042632757,19.8083697,155.33,155.27,6.4694]
[1749042632963,19.8083697,155.31,155.28,0.14216157]
[1749042633169,19.8083697,155.31,155.28,0.56864628]
[1749042634160,19.8083697,155.29,155.28,0.14216157]
[1749042634362,19.8083697,155.29,155.28,0.42648471]
[1749042634761,19.8083697,155.29,155.27,0.14216157]
[1749042634972,19.8083697,155.28,155.27,0.14216157]
[1749042638452,19.8083697,155.29,155.27,0.14216157]
[1749042638778,1.568,155.35,155.29,19.21829514]
[1749042638779,2.3699413,155.35,155.29,19.21829514]
[1749042639083,19.8083697,155.34,155.3,19.8083697]
[1749042639862,19.8083697,155.33,155.29,39.02666484]
[1749042640451,19.8083697,155.34,155.31,0.42648471]
[1749042640873,22.178311,155.35,155.31,20.23485441]
[1749042641071,21.3763697,155.35,155.31,20.23485441]
[1749042641267,19.8083697,155.36,155.33,0.42648471]
[1749042641473,19.8083697,155.37,155.33,39.02666484]
[1749042642165,19.8083697,155.36,155.33,19.21829514]
[1749042643879,19.8083697,155.37,155.33,39.02666484]
[1749042644370,19.8083697,155.38,155.34,19.8083697]
[1749042644972,2.3330413,155.39,155.35,19.21829514]
[1749042645177,21.3394697,155.39,155.35,39.02666484]